bitfinex/quotes_SOLUSD_20240808
["timestamp","ask_amount","ask_price","bid_price","bid_amount"]
[1723135361117,51.245,160.13,160.07,6.5578]
[1723135361337,46.56190206,160.12,160.07,6.5578]
[1723135361713,1.56190206,160.12,160.07,6.5578]
[1723135362033,46.56189691,160.13,160.07,6.5578]
[1723135362338,46.56188107,160.12,160.07,6.5578]
[1723135362523,1.56188107,160.12,160.07,6.5578]
[1723135362719,7.80738107,160.12,160.07,6.5578]
[1723135362919,45.0,160.11,160.07,6.5578]
[1723135363330,45.0,160.12,160.07,6.5578]
[1723135364438,45.0,160.13,160.07,6.5578]
[1723135365338,43.92,160.19,160.07,6.5578]
[1723135365339,50.1626,160.19,160.07,6.5578]
[1723135365540,1.5615963,160.18,160.07,6.5578]
[1723135365717,6.2438,160.16,160.07,6.5578]
[1723135365921,6.2448,160.14,160.07,6.5578]
[1723135366124,7.80678041,160.13,160.07,6.5578]
[1723135366450,6.2454,160.12,160.07,6.5578]
[1723135366747,45.0,160.11,160.07,6.5578]
[1723135366921,51.2457,160.11,160.07,6.5578]
[1723135367237,45.0,160.11,160.07,6.5578]
[1723135367454,1.56206762,160.1,160.07,6.5578]
[1723135367741,46.56197386,160.11,160.07,6.5578]
[1723135368039,43.92,160.09,160.03,6.1904]
[1723135368215,6.2483,160.05,160.0,15.281]
[1723135368420,46.56263058,160.04,160.0,15.281]
[1723135368928,45.0,160.05,160.0,15.281]
[1723135369345,9.79525706,160.04,160.0,15.281]
[1723135369640,45.0,160.03,160.0,15.281]
[1723135370429,6.2458,160.11,160.0,15.281]
[1723135370626,1.56233805,160.11,160.0,15.281]
[1723135370822,9.7942006,160.07,160.0,15.281]
[1723135371028,7.80831143,160.1,160.0,15.281]
[1723135371224,9.79206561,160.07,160.0,15.281]
[1723135372022,45.0,160.06,160.0,15.281]
[1723135375123,1.56262547,160.05,160.0,15.281]
[1723135375348,7.81092547,160.05,160.0,15.281]
[1723135375529,45.0,160.04,160.0,15.281]
[1723135376038,1.56270282,160.03,159.99,6.1904]
[1723135377119,1.56284627,160.04,159.99,6.1904]
[1723135377323,1.56284627,160.04,159.95,22.5961]
[1723135377324,6.2489,160.03,159.95,22.5961]
[1723135377534,46.56302459,160.02,159.95,22.5961]
[1723135377759,1.56302459,160.02,159.95,22.5961]
[1723135378043,1.56302907,160.01,159.95,22.5961]
[1723135378826,46.56302907,160.01,159.95,22.5961]
[1723135379331,45.0,160.0,159.95,22.5961]
[1723135379528,1.56306239,159.99,159.95,22.5961]
[1723135380450,1.563062,160.01,159.95,22.5961]
[1723135380751,1.563062,160.04,159.95,22.5961]
[1723135381055,6.2492,160.02,159.95,22.5961]
[1723135381229,1.56306114,160.01,159.95,22.5961]
[1723135382243,46.56301655,160.02,159.95,22.5961]
[1723135382439,45.0,160.02,159.95,22.5961]
[1723135382654,1.56301636,160.03,159.95,22.5961]
[1723135382655,6.47231763,160.05,159.95,22.5961]
[1723135382963,9.79206561,160.07,159.95,22.5961]
[1723135383145,9.79206561,160.07,159.96,20.0]
[1723135383650,6.2443,160.15,160.01,6.2405]
[1723135383852,6.2438,160.16,160.01,6.2405]
[1723135384027,9.78987139,160.12,160.01,6.2405]
[1723135385467,1.56213848,160.11,160.01,6.2405]
[1723135385634,9.78987139,160.12,160.01,6.2405]
[1723135385831,1.56205287,160.11,160.01,6.2405]
[1723135386143,9.78987139,160.12,160.01,6.2405]
[1723135386537,45.0,160.11,160.01,6.2405]
[1723135386738,9.78987139,160.12,160.02,20.0]
[1723135387443,9.78987139,160.12,160.01,6.2405]
[1723135387640,9.78987139,160.12,160.02,20.0]
[1723135388528,45.0,160.11,160.02,20.0]
[1723135389578,45.0,160.11,160.02,21.24956265]
[1723135389748,45.0,160.11,160.02,20.0]
[1723135391164,45.0,160.11,160.01,6.2405]
[1723135395163,1.56233631,160.1,160.01,6.2405]
[1723135395473,45.0,160.11,160.01,6.2405]
[1723135395676,46.56200623,160.11,160.01,6.2405]
[1723135395882,45.0,160.11,160.01,6.2405]
[1723135396774,64.2520439,160.1,160.01,6.2405]
[1723135396979,6.2473,160.07,160.01,6.2405]
[1723135397182,6.2473,160.07,159.91,22.4131]
[1723135397183,1.56256432,160.06,159.91,22.4131]
[1723135397487,46.56256432,160.06,159.91,22.4131]
[1723135397863,46.56256432,160.06,159.91,24.93936376]
[1723135398060,46.56256432,160.06,159.91,22.4131]
[1723135398366,6.2489,160.03,159.91,22.4131]
[1723135398558,46.56313664,160.02,159.91,22.4131]
[1723135398757,45.0,160.02,159.91,22.4131]
[1723135399885,1.56299253,160.01,159.91,22.4131]
[1723135400186,45.0,160.02,159.91,22.4131]
[1723135400881,1.56309617,160.01,159.91,22.4131]
[1723135401064,1.56309696,160.01,159.91,22.4131]
[1723135401266,45.0,160.02,159.91,22.4131]
[1723135401564,1.5629586,160.01,159.91,22.4131]
[1723135401974,7.8126586,160.01,159.91,22.4131]
[1723135402178,45.0,160.0,159.91,22.4131]
[1723135402366,51.25,160.0,159.91,22.4131]
[1723135402561,45.0,160.0,159.91,22.4131]
[1723135403173,46.5629586,160.01,159.91,22.4131]
[1723135403375,52.8127586,160.01,159.91,22.4131]
[1723135403574,51.2498,160.01,159.91,22.4131]
[1723135403758,45.0,160.01,159.91,22.4131]
[1723135404768,51.2496,160.01,159.91,22.4131]
[1723135405768,34.19,159.99,159.91,22.4131]
[1723135405967,45.0,159.98,159.91,22.4131]
[1723135406378,45.0,159.98,159.92,1.25038376]
[1723135406576,45.0,159.98,159.91,22.4131]
[1723135409000,34.19,160.03,159.92,20.0]
[1723135409293,1.56289192,160.06,159.91,22.4131]
[1723135409294,40.4399,160.01,159.91,22.4131]
[1723135410093,34.19,160.01,159.91,22.4131]
[1723135410282,45.0,160.0,159.91,22.4131]
[1723135410888,51.25,160.0,159.91,22.4131]
[1723135411370,45.0,160.0,159.91,22.4131]
[1723135412591,45.0,160.0,159.92,1.25045541]
[1723135412805,45.0,160.0,159.91,22.4131]
[1723135413181,34.19,159.99,159.91,22.4131]
[1723135413487,45.0,159.98,159.91,22.4131]
[1723135413985,34.19,160.01,159.91,22.4131]
[1723135414473,1.56303634,160.0,159.91,22.4131]
[1723135414670,34.19,160.01,159.91,22.4131]
[1723135414873,34.19,159.99,159.91,22.4131]
[1723135415091,1.56319086,159.98,159.91,22.4131]
[1723135415299,46.56319086,159.98,159.91,22.4131]
[1723135415800,45.0,159.98,159.91,22.4131]
[1723135416099,6.45043261,160.04,159.91,22.4131]
[1723135416274,34.19,160.02,159.91,22.4131]
[1723135417201,34.19,160.02,159.91,23.66342592]
[1723135417374,34.19,160.02,159.91,22.4131]
[1723135418070,45.0,160.01,159.91,22.4131]
[1723135419091,45.0,160.01,159.91,56.6031]
[1723135420785,6.45043261,160.04,159.98,6.5659]
[1723135420989,9.78987139,160.12,159.92,35.44023261]
[1723135420990,9.78987139,160.12,160.02,34.19]
[1723135421209,9.78987139,160.12,160.04,6.5659]
[1723135421412,9.78987139,160.12,160.05,1.24942577]
[1723135421617,9.78987139,160.12,160.04,6.5659]
[1723135422107,51.78735091,160.12,160.04,6.5659]
[1723135422305,34.19,160.08,160.04,6.5659]
[1723135422689,6.248,160.05,160.0,21.7067]
[1723135423019,64.19,160.04,160.0,21.7067]
[1723135423236,45.0,160.03,160.0,21.7067]
[1723135424487,30.0,160.04,160.0,21.7067]
[1723135424892,34.19,160.08,160.0,21.7067]
[1723135424893,30.0,160.02,160.0,21.7067]
[1723135425503,9.78987139,160.12,160.0,21.7067]
[1723135425504,34.19,160.1,160.0,21.7067]
[1723135425721,9.78987139,160.12,160.0,21.7067]
[1723135425905,6.2462,160.1,160.0,21.7067]
[1723135426104,45.0,160.09,160.0,21.7067]
[1723135426613,51.2465,160.09,160.0,21.7067]
[1723135427012,6.2468,160.08,160.0,21.7067]
[1723135427221,45.0,160.07,160.0,21.7067]
[1723135428510,45.0,160.07,160.01,1.24975884]
[1723135429218,45.0,160.07,160.0,1.0]
[1723135429418,51.2473,160.07,160.0,1.0]
[1723135429594,6.2476,160.06,160.0,1.0]
[1723135429800,45.0,160.05,160.0,1.0]
[1723135430321,45.0,160.06,160.0,1.0]
[1723135431324,6.2481,160.05,160.0,1.0]
[1723135431494,45.0,160.04,160.0,1.0]
[1723135431700,51.2476,160.06,160.0,1.0]
[1723135432328,36.2496,160.01,160.0,1.0]
[1723135432630,75.0,160.01,159.95,16.0945]
[1723135432931,45.0,160.0,159.95,16.0945]
[1723135433497,30.0,159.98,159.95,16.0945]
[1723135433699,45.0,159.97,159.95,16.0945]
[1723135435238,45.0,159.97,159.92,6.183]
[1723135436247,6.2495,160.02,159.92,6.183]
[1723135436545,43.91,160.04,159.92,6.183]
[1723135436729,6.2495,160.02,159.92,6.183]
[1723135436929,6.2496,160.01,159.92,6.183]
[1723135437136,6.2501,160.0,159.92,6.183]
[1723135437446,6.2498,160.01,159.92,6.183]
[1723135437646,45.0,160.0,159.92,6.183]
[1723135437941,51.2496,160.01,159.92,6.183]
[1723135439449,6.25,160.0,159.92,6.183]
[1723135439741,6.2492,160.02,159.92,6.183]
[1723135439946,6.2487,160.04,159.92,6.183]
[1723135440251,6.249,160.03,159.92,6.183]
[1723135440628,6.2488,160.03,159.92,6.183]
[1723135441139,6.2493,160.02,159.92,6.183]
[1723135441443,6.2492,160.02,159.92,6.183]
[1723135441658,6.249,160.03,159.92,6.183]
[1723135441852,45.0,160.02,159.93,1.2503246]
[1723135442034,51.2488,160.03,159.93,1.2503246]
[1723135442354,45.0,160.03,159.92,6.183]
[1723135442730,6.248,160.05,159.92,6.183]
[1723135442731,45.0,160.04,159.92,6.183]
[1723135442947,6.2492,160.02,159.92,6.183]
[1723135443245,6.2496,160.01,159.92,6.183]
[1723135443858,25.23556082,160.06,159.92,6.183]
[1723135443859,1.5630116,160.05,159.92,6.183]
[1723135444044,1.5630116,160.05,159.9,0.8297811]
[1723135444045,6.2457,160.11,159.96,6.6172]
[1723135444349,322.3853,160.15,159.98,21.5644]
[1723135444350,9.794495,160.08,159.98,21.5644]
[1723135444540,12.91164082,160.13,159.99,1.24964378]
[1723135444743,12.70097982,160.13,159.99,1.24964378]
[1723135444950,257.0,160.15,160.0,6.2302]
[1723135445152,6.2445,160.14,160.01,1.24945969]
[1723135445448,6.245,160.13,160.02,15.3061]
[1723135445648,6.245,160.13,160.03,1.24949574]
[1723135446455,6.2453,160.12,160.03,1.24949574]
[1723135446650,6.2453,160.12,160.02,49.4361]
[1723135447148,40.5840036,160.15,160.03,1.24949694]
[1723135447346,6.2448,160.14,160.03,1.24949694]
[1723135447831,6.4540036,160.15,160.02,15.3061]
[1723135448031,6.2449,160.13,160.03,1.24949464]
[1723135448333,45.0,160.12,160.02,15.3061]
[1723135448940,6.245,160.13,160.02,15.3061]
[1723135449336,6.2445,160.14,160.03,1.24950746]
[1723135449535,6.2442,160.15,160.04,6.0322]
[1723135450138,22.48927527,160.16,160.05,1.24929054]
[1723135450362,6.2442,160.15,160.05,1.24929054]
[1723135450661,6.2442,160.15,160.04,6.0322]
[1723135450662,6.2468,160.08,160.04,6.0322]
[1723135450832,6.248,160.05,160.04,6.0322]
[1723135451036,6.248,160.05,159.86,20.0]
[1723135451037,6.2481,160.05,160.0,6.0322]
[1723135451550,15.6162,160.1,160.0,6.0322]
[1723135451856,6.2469,160.08,160.0,6.0322]
[1723135452060,46.56242014,160.07,160.0,6.0322]
[1723135452228,45.0,160.06,160.0,6.0322]
[1723135452429,37.4213,160.18,160.0,6.0322]
[1723135452657,6.2458,160.11,160.0,6.0322]
[1723135452842,6.2461,160.1,160.0,6.0322]
[1723135453035,21.8132,160.18,160.0,6.0322]
[1723135453036,6.246,160.11,160.0,6.0322]
[1723135453242,1.56209398,160.15,160.0,6.0322]
[1723135453443,75.73497527,160.16,160.0,6.0322]
[1723135453641,1.56225043,160.15,160.0,6.0322]
[1723135453843,6.2461,160.1,160.0,6.0322]
[1723135454040,6.2457,160.11,160.0,6.0322]
[1723135454450,75.73497527,160.16,160.0,6.0322]
[1723135454666,6.2457,160.11,160.0,6.0322]
[1723135455642,6.246,160.1,160.0,6.0322]
[1723135456261,45.0,160.09,160.0,6.0322]
[1723135456557,51.2462,160.1,160.0,6.0322]
[1723135456764,45.0,160.1,160.0,6.0322]
[1723135456940,60.12557527,160.16,160.01,16.4055]
[1723135457143,1.5617446,160.15,160.01,16.4055]
[1723135457336,60.12557527,160.16,160.01,16.4055]
[1723135457839,6.2453,160.12,160.01,16.4055]
[1723135458350,45.0,160.11,160.01,16.4055]
[1723135458552,6.245,160.13,160.01,16.4055]
[1723135458858,6.2453,160.12,160.01,16.4055]
[1723135459236,6.2457,160.11,160.01,16.4055]
[1723135459438,1.56200604,160.1,160.01,16.4055]
[1723135459748,6.2472,160.07,160.01,16.4055]
[1723135459947,46.56246789,160.06,160.01,16.4055]
[1723135460149,51.2477,160.06,160.01,16.4055]
[1723135460746,6.2481,160.05,160.01,16.4055]
[1723135461748,45.0,160.06,160.01,16.4055]
[1723135461932,51.2474,160.07,160.01,16.4055]
[1723135462135,6.2476,160.06,160.01,16.4055]
[1723135462332,45.0,160.05,160.01,16.4055]
[1723135468060,45.0,160.06,160.01,16.4055]
[1723135468271,45.0,160.07,160.01,16.4055]
[1723135468955,45.0,160.08,160.01,16.4055]
[1723135469156,51.2469,160.08,160.01,16.4055]
[1723135469360,20.0,160.07,160.01,16.4055]
[1723135469539,45.0,160.06,160.01,16.4055]
[1723135469939,20.0,160.07,160.01,17.6553548]
[1723135470158,26.2462,160.1,160.01,16.4055]
[1723135470451,20.0,160.1,160.01,16.4055]
[1723135470653,34.16,160.07,160.01,16.4055]
[1723135470871,34.16,160.03,160.0,6.0322]
[1723135471240,34.16,160.05,160.0,6.0322]
[1723135471582,20.0,160.04,160.0,6.0322]
[1723135471759,45.0,160.03,160.0,6.0322]
[1723135472860,45.0,160.04,160.0,6.0322]
[1723135475046,34.16,160.09,160.0,6.0322]
[1723135475377,34.16,160.13,160.01,1.24954566]
[1723135475548,1.56172257,160.13,160.03,6.1884]
[1723135475879,6.2457,160.11,160.03,6.1884]
[1723135476047,1.5619368,160.1,160.03,6.1884]
[1723135476245,6.45229749,160.12,160.03,6.1884]
[1723135476456,12.69789749,160.12,160.03,6.1884]
[1723135476881,6.45229749,160.12,160.03,6.1884]
[1723135477064,6.2458,160.11,160.03,6.1884]
[1723135477263,21.561934,160.1,160.03,6.1884]
[1723135477459,20.0,160.1,160.04,1.24948682]
[1723135477658,26.2448,160.14,160.04,1.24948682]
[1723135477983,6.2457,160.11,160.03,6.1884]
[1723135478190,6.2461,160.1,160.03,6.1884]
[1723135478881,45.0,160.09,160.03,6.1884]
[1723135479580,45.0,160.1,160.03,6.1884]
[1723135479995,1.56196271,160.09,160.03,6.1884]
[1723135480477,45.0,160.1,160.03,6.1884]
[1723135480653,45.0,160.11,160.03,6.1884]
[1723135480961,34.16,160.09,160.03,6.1884]
[1723135481151,6.2473,160.07,160.03,6.1884]
[1723135481347,45.0,160.06,160.03,6.1884]
[1723135481767,45.0,160.07,160.03,6.1884]
[1723135482459,86.96947463,160.07,160.03,6.1884]
[1723135482661,79.16,160.07,160.03,6.1884]
[1723135482859,85.4073,160.07,160.03,6.1884]
[1723135483167,79.16,160.07,160.03,6.1884]
[1723135483386,79.16,160.07,159.97,6.4973]
[1723135483555,6.2487,160.04,159.97,6.4973]
[1723135483758,65.0,160.03,159.97,6.4973]
[1723135484059,45.0,160.03,159.98,35.41013291]
[1723135484371,45.0,160.03,159.97,6.4973]
[1723135485458,45.0,160.03,159.98,1.24979521]
[1723135485654,45.0,160.03,159.97,40.6573]
[1723135485860,45.0,160.03,159.98,1.24979599]
[1723135486378,45.0,160.03,159.97,40.6573]
[1723135487288,45.0,160.03,159.97,6.4973]
[1723135487471,45.0,160.03,159.98,1.24985572]
[1723135488198,45.0,160.03,159.97,40.6573]
[1723135488378,45.0,160.03,159.97,6.4973]
[1723135489179,1.5623806,160.02,159.97,6.4973]
[1723135489883,45.0,160.03,159.97,6.4973]
[1723135490295,45.0,160.03,159.97,7.74720278]
[1723135490965,45.0,160.03,159.97,6.4973]
[1723135491693,40.4069,160.08,159.97,7.7472015]
[1723135491863,6.2472,160.07,159.97,6.4973]
[1723135492181,20.0,160.06,159.97,6.4973]
[1723135492589,26.2474,160.07,159.97,6.4973]
[1723135492917,20.0,160.07,159.97,6.4973]
[1723135493390,51.2477,160.06,159.97,6.4973]
[1723135493684,34.16,160.02,159.97,6.4973]
[1723135493857,45.0,160.01,159.97,6.4973]
[1723135494877,45.0,160.02,159.97,6.4973]
[1723135495796,45.0,160.03,159.97,6.4973]
[1723135495987,20.0,160.02,159.97,6.4973]
[1723135496291,45.0,160.01,159.97,6.4973]
[1723135498067,56.22759289,160.08,159.97,6.4973]
[1723135498068,79.16,160.02,159.97,6.4973]
[1723135498266,6.2501,160.0,159.96,15.0431]
[1723135498480,46.56297329,159.99,159.93,6.3457]
[1723135498971,45.0,159.99,159.93,6.3457]
[1723135500390,34.16,159.96,159.9,0.8297811]
[1723135500579,54.16,159.98,159.9,0.8297811]
[1723135500901,45.0,159.97,159.9,0.8297811]
[1723135501481,34.16,159.96,159.9,0.8297811]
[1723135501686,45.0,159.95,159.9,0.8297811]
[1723135502079,20.0,159.98,159.9,0.8297811]
[1723135502400,6.2508,159.98,159.9,0.8297811]
[1723135502584,34.16,159.98,159.9,0.8297811]
[1723135503274,45.0,159.97,159.9,0.8297811]
[1723135503479,20.0,159.99,159.9,0.8297811]
[1723135503687,34.16,159.98,159.9,0.8297811]
[1723135503889,34.16,159.96,159.9,0.8297811]
[1723135504203,20.0,159.95,159.9,0.8297811]
[1723135504501,34.16,159.98,159.9,0.8297811]
[1723135504701,65.0,159.97,159.9,0.8297811]
[1723135504888,6.2516,159.96,159.9,0.8297811]
[1723135505208,45.0,159.95,159.9,0.8297811]
[1723135505981,52.81554786,159.95,159.9,0.8297811]
[1723135506481,51.2521,159.95,159.9,0.8297811]
[1723135506987,45.0,159.95,159.9,0.8297811]
[1723135507501,20.0,159.94,159.9,0.8297811]
[1723135507706,45.0,159.93,159.9,0.8297811]
[1723135508201,35.72376753,159.92,159.9,0.8297811]
[1723135508404,65.0,159.91,159.86,6.4148]
[1723135508782,45.0,159.91,159.86,6.4148]
[1723135508977,1.56388005,159.9,159.86,6.4148]
[1723135509181,1.56389286,159.89,159.86,6.4148]
[1723135509400,45.0,159.91,159.86,6.4148]
[1723135511189,51.2536,159.91,159.86,6.4148]
[1723135511594,45.0,159.91,159.86,6.4148]
[1723135511804,51.2535,159.91,159.86,6.4148]
[1723135512015,1.56394921,159.9,159.86,6.4148]
[1723135512213,1.56394448,159.89,159.86,6.4148]
[1723135512510,45.0,159.91,159.86,6.4148]
[1723135512815,34.16,159.92,159.86,6.4148]
[1723135513360,34.16,159.92,159.84,15.5905]
[1723135513361,34.16,159.9,159.84,15.5905]
[1723135513688,40.4131,159.92,159.84,15.5905]
[1723135514012,34.16,159.94,159.84,15.5905]
[1723135514213,20.0,159.93,159.84,15.5905]
[1723135515314,45.0,159.92,159.84,15.5905]
[1723135516019,51.2531,159.92,159.84,15.5905]
[1723135516211,45.0,159.92,159.84,15.5905]
[1723135516520,45.0,159.92,159.85,1.2510765]
[1723135516902,20.0,159.93,159.84,15.5905]
[1723135516903,34.16,159.93,159.84,15.5905]
[1723135517218,26.2531,159.92,159.84,15.5905]
[1723135517389,6.2535,159.91,159.84,15.5905]
[1723135518222,45.0,159.9,159.84,15.5905]
[1723135518411,1.5640178,159.89,159.84,15.5905]
[1723135518614,45.0,159.9,159.84,15.5905]
[1723135518803,45.0,159.9,159.84,12.5965]
[1723135519193,41.97831742,159.89,159.83,6.1666]
[1723135519516,40.4143,159.89,159.83,6.1666]
[1723135519717,45.0,159.88,159.83,6.1666]
[1723135521918,45.0,159.88,159.84,15.089]
[1723135522101,34.16,159.91,159.84,15.089]
[1723135522299,40.4135,159.91,159.84,15.089]
[1723135522513,34.16,159.91,159.84,15.089]
[1723135522702,20.0,159.92,159.84,15.089]
[1723135522901,26.2532,159.92,159.84,15.089]
[1723135523109,20.0,159.92,159.84,15.089]
[1723135523727,34.16,159.95,159.85,1.25100934]
[1723135523918,16.05261926,159.96,159.84,49.249]
[1723135524728,16.05241926,159.96,159.84,49.249]
[1723135524926,9.80081926,159.96,159.84,49.249]
[1723135525118,9.80081926,159.96,159.88,6.4239]
[1723135525425,9.80081926,159.96,159.9,34.16]
[1723135525625,6.2495,160.02,159.9,34.16]
[1723135525922,9.79703967,160.0,159.9,34.16]
[1723135526314,9.79703967,160.0,159.92,34.16]
[1723135526496,34.16,160.05,159.94,40.5376]
[1723135526696,1.56248752,160.04,159.94,40.5376]
[1723135527003,6.2484,160.04,159.94,40.5376]
[1723135527233,1.56255418,160.03,159.94,6.3776]
[1723135527517,9.79597231,160.06,159.95,1.25000955]
[1723135527727,34.16,160.07,159.94,40.5376]
[1723135527904,1.56232605,160.05,159.94,40.5376]
[1723135528102,1.56255574,160.04,159.94,6.3776]
[1723135528297,40.4088,160.03,159.94,6.3776]
[1723135528520,34.16,160.03,159.94,6.3776]
[1723135528826,40.4088,160.03,159.94,6.3776]
[1723135529328,6.2492,160.02,159.94,6.3776]
[1723135529518,45.0,160.01,159.94,6.3776]
[1723135529719,79.16,160.01,159.94,6.3776]
[1723135529925,1.56282648,160.0,159.94,6.3776]
[1723135530114,21.56282648,160.0,159.94,6.3776]
[1723135530429,45.0,159.99,159.94,6.3776]
[1723135532146,45.0,160.0,159.94,6.3776]
[1723135532427,46.56300962,160.0,159.9,6.5892]
[1723135532601,6.2519,159.95,159.9,6.5892]
[1723135532801,66.56353165,159.94,159.9,6.5892]
[1723135533324,65.0,159.94,159.9,6.5892]
[1723135533705,45.0,159.94,159.91,15.8702]
[1723135534214,1.56313869,159.99,159.91,15.8702]
[1723135534421,6.2501,160.0,159.91,15.8702]
[1723135534662,1.56295604,159.99,159.91,15.8702]
[1723135534807,1.56302938,160.02,159.91,15.8702]
[1723135535009,46.49288799,160.03,159.91,15.8702]
[1723135535010,6.2508,159.98,159.91,15.8702]
[1723135535510,45.0,159.97,159.91,15.8702]
[1723135535722,45.0,159.98,159.91,15.8702]
[1723135536531,51.2509,159.98,159.91,15.8702]
[1723135536723,1.56316253,159.97,159.91,15.8702]
[1723135537637,45.0,159.98,159.91,15.8702]
[1723135537824,45.0,159.98,159.9,6.5892]
[1723135538040,6.2535,159.91,159.86,21.7553]
[1723135538333,43.94,159.96,159.86,21.7553]
[1723135538334,45.0,159.9,159.86,21.7553]
[1723135540943,6.2516,159.96,159.86,21.7553]
[1723135541239,6.43960268,159.97,159.86,21.7553]
[1723135541629,6.2535,159.91,159.86,21.7553]
[1723135541815,1.56383761,159.9,159.86,21.7553]
[1723135542158,6.252,159.95,159.86,21.7553]
[1723135542338,45.0,159.94,159.86,21.7553]
[1723135542645,6.43960268,159.97,159.86,21.7553]
[1723135542810,6.2522,159.95,159.86,21.7553]
[1723135543015,6.2523,159.94,159.86,21.7553]
[1723135543314,6.43960268,159.97,159.86,21.7553]
[1723135543536,6.2516,159.96,159.86,21.7553]
[1723135543749,45.0,159.95,159.86,21.7553]
[1723135543930,46.56337573,159.95,159.86,21.7553]
[1723135544137,15.6309,159.94,159.86,21.7553]
[1723135544436,46.56374508,159.93,159.86,21.7553]
[1723135545038,52.81644508,159.93,159.86,21.7553]
[1723135545231,46.56374508,159.93,159.86,21.7553]
[1723135545441,6.2531,159.92,159.86,21.7553]
[1723135545642,45.0,159.91,159.86,21.7553]
[1723135546154,51.2531,159.92,159.86,21.7553]
[1723135546557,6.2535,159.91,159.86,21.7553]
[1723135546856,45.0,159.9,159.86,21.7553]
[1723135547235,6.43960268,159.97,159.86,21.7553]
[1723135547464,6.2528,159.93,159.86,21.7553]
[1723135548456,45.0,159.92,159.86,21.7553]
[1723135548842,45.0,159.93,159.86,21.7553]
[1723135549067,45.0,159.94,159.86,21.7553]
[1723135549550,6.43960268,159.97,159.86,21.7553]
[1723135549762,6.2507,159.99,159.86,21.7553]
[1723135550053,6.2495,160.02,159.89,6.6489]
[1723135550267,6.2488,160.03,159.9,15.6435]
[1723135550566,7.81200005,160.02,159.91,6.6489]
[1723135550737,6.44484679,160.03,159.91,6.6489]
[1723135550943,1.56287544,160.02,159.91,6.6489]
[1723135551270,6.2497,160.01,159.91,6.6489]
[1723135552380,6.25,160.0,159.91,6.6489]
[1723135552849,40.43,160.0,159.91,6.6489]
[1723135553049,6.44484679,160.03,159.91,6.6489]
[1723135553050,34.18,159.98,159.91,6.6489]
[1723135553267,46.56318016,159.97,159.91,6.6489]
[1723135553479,45.0,159.97,159.91,6.6489]
[1723135554152,34.18,159.96,159.91,6.6489]
[1723135554348,34.18,159.94,159.91,6.6489]
[1723135554691,34.18,159.94,159.9,15.6435]
[1723135554692,45.0,159.93,159.9,15.6435]
[1723135554977,35.74357643,159.92,159.87,6.4166]
[1723135555160,45.0,159.91,159.87,6.4166]
[1723135555855,1.5638388,159.9,159.87,6.4166]
[1723135556068,6.2539,159.9,159.81,22.7209]
[1723135556274,45.0,159.89,159.81,22.7209]
[1723135557459,45.0,159.9,159.81,22.7209]
[1723135558172,2.49901252,159.97,159.81,22.7209]
[1723135558364,31.1943,160.02,159.83,22.6913]
[1723135558565,6.2512,159.97,159.83,22.6913]
[1723135558766,31.1943,160.02,159.83,22.6913]
[1723135558767,6.2517,159.96,159.83,22.6913]
[1723135558980,6.2512,159.97,159.83,22.6913]
[1723135559291,7.81418721,159.98,159.83,22.6913]
[1723135559585,6.2511,159.97,159.83,22.6913]
[1723135559762,1.56337844,159.97,159.85,6.5774]